[Event "Titled Tuesday Blitz February 14 Early 2023"]
[White "Kubatko, Ivan"]
[Black "Willathgamuwa, Kevin"]
[WhiteFideId "24111473"]
[BlackFideId "3214168"]
[WhiteElo "2257"]
[BlackElo "2062"]
[Result "1-0"]
[Round "05"]
[TimeControl "180+2"]
[Date "2023.02.15"]
[WhiteClock "0:00:12"]
[BlackClock "0:00:14"]

1. e4 {[%clk 0:02:57]}  e6 {[%clk 0:03:00]} 2. d4 {[%clk 0:02:55]}  d5 {[%clk 0:03:01]} 3. exd5 {[%clk 0:02:55]}  exd5 {[%clk 0:03:00]} 4. Nf3 {[%clk 0:02:55]}  Bd6 {[%clk 0:03:00]} 5. c4 {[%clk 0:02:54]}  Nf6 {[%clk 0:02:57]} 6. Nc3 {[%clk 0:02:52]}  O-O {[%clk 0:02:56]} 7. Bd3 {[%clk 0:02:39]}  Re8+ {[%clk 0:02:53]} 8. Be3 {[%clk 0:02:39]}  dxc4 {[%clk 0:02:50]} 9. Bxc4 {[%clk 0:02:39]}  Bf4 {[%clk 0:02:49]} 10. O-O {[%clk 0:02:30]}  Bxe3 {[%clk 0:02:44]} 11. fxe3 {[%clk 0:02:27]}  Be6 {[%clk 0:02:37]} 12. Bxe6 {[%clk 0:01:29]}  Rxe6 {[%clk 0:02:37]} 13. Qb3 {[%clk 0:01:29]}  Rxe3 {[%clk 0:02:24]} 14. Ne5 {[%clk 0:01:14]}  Qe8 {[%clk 0:02:14]} 15. Qxb7 {[%clk 0:00:56]}  Nbd7 {[%clk 0:02:14]} 16. Rae1 {[%clk 0:00:35]}  Rb8 {[%clk 0:01:36]} 17. Qxc7 {[%clk 0:00:33]}  Rxe1 {[%clk 0:01:18]} 18. Rxe1 {[%clk 0:00:34]}  Rxb2 {[%clk 0:01:18]} 19. Qxa7 {[%clk 0:00:26]}  g6 {[%clk 0:01:07]} 20. Nf3 {[%clk 0:00:26]}  Qc8 {[%clk 0:01:02]} 21. Qa3 {[%clk 0:00:20]}  Rc2 {[%clk 0:01:01]} 22. Rc1 {[%clk 0:00:16]}  Rxc1+ {[%clk 0:00:53]} 23. Qxc1 {[%clk 0:00:17]}  Ne4 {[%clk 0:00:54]} 24. Ne2 {[%clk 0:00:17]}  Qa6 {[%clk 0:00:52]} 25. Qe3 {[%clk 0:00:13]}  f5 {[%clk 0:00:48]} 26. Nd2 {[%clk 0:00:11]}  Ndf6 {[%clk 0:00:39]} 27. Nxe4 {[%clk 0:00:10]}  Nxe4 {[%clk 0:00:39]} 28. a3 {[%clk 0:00:11]}  Qa4 {[%clk 0:00:36]} 29. h3 {[%clk 0:00:07]}  Qd1+ {[%clk 0:00:19]} 30. Kh2 {[%clk 0:00:07]}  Nd2 {[%clk 0:00:11]} 31. Qe6+ {[%clk 0:00:07]}  Kg7 {[%clk 0:00:12]} 32. Ng3 {[%clk 0:00:04]}  f4 {[%clk 0:00:10]} 33. Qe5+ {[%clk 0:00:04]}  Kg8 {[%clk 0:00:06]} 34. Qxf4 {[%clk 0:00:04]}  Qe1 {[%clk 0:00:06]} 35. d5 {[%clk 0:00:02]}  Qe7 {[%clk 0:00:03]} 36. d6 {[%clk 0:00:02]}  Qd7 {[%clk 0:00:03]} 37. Qxd2 {[%clk 0:00:02]}  Kg7 {[%clk 0:00:03]} 38. Qd4+ {[%clk 0:00:03]}  Kg8 {[%clk 0:00:03]} 39. Qe5 {[%clk 0:00:03]}  Kf7 {[%clk 0:00:03]} 40. Qe7+ {[%clk 0:00:04]}  Qxe7 {[%clk 0:00:03]} 41. dxe7 {[%clk 0:00:05]}  Kxe7 {[%clk 0:00:04]} 42. Ne2 {[%clk 0:00:05]}  Kd6 {[%clk 0:00:05]} 43. Kg3 {[%clk 0:00:06]}  Kc6 {[%clk 0:00:06]} 44. Kg4 {[%clk 0:00:07]}  Kb5 {[%clk 0:00:07]} 45. Kg5 {[%clk 0:00:07]}  Ka4 {[%clk 0:00:08]} 46. Kh6 {[%clk 0:00:08]}  Kb3 {[%clk 0:00:09]} 47. Kxh7 {[%clk 0:00:09]}  Kc2 {[%clk 0:00:10]} 48. Kxg6 {[%clk 0:00:09]}  Kd1 {[%clk 0:00:10]} 49. a4 {[%clk 0:00:10]}  Ke1 {[%clk 0:00:11]} 50. a5 {[%clk 0:00:10]}  Kf2 {[%clk 0:00:12]} 51. a6 {[%clk 0:00:11]}  Kf1 {[%clk 0:00:13]} 52. a7 {[%clk 0:00:12]}  Kf2 {[%clk 0:00:12]} 53. a8=Q {[%clk 0:00:12]}  Ke1 {[%clk 0:00:13]} 54. Qf3 {[%clk 0:00:12]}  Kd2 {[%clk 0:00:13]} 55. Nf4 {[%clk 0:00:12]}  Ke1 {[%clk 0:00:14]} 56. Qe2# {[%clk 0:00:12]} 1-0


[Site "https://www.chess.com"]

[Event "Titled Tuesday Blitz February 14 Early 2023"]
[White "Ciuffoletti, Paolo"]
[Black "Wilson, Elvin"]
[WhiteFideId "807630"]
[BlackFideId "2014874"]
[WhiteElo "2106"]
[BlackElo "2183"]
[Result "0-1"]
[Round "05"]
[TimeControl "180+2"]
[Date "2023.02.15"]
[WhiteClock "0:00:12"]
[BlackClock "0:00:23"]

1. e4 {[%clk 0:03:00]}  e6 {[%clk 0:02:57]} 2. d4 {[%clk 0:03:00]}  d5 {[%clk 0:02:54]} 3. e5 {[%clk 0:03:00]}  c5 {[%clk 0:02:52]} 4. c3 {[%clk 0:03:00]}  Nc6 {[%clk 0:02:53]} 5. Nf3 {[%clk 0:03:01]}  Qb6 {[%clk 0:02:53]} 6. a3 {[%clk 0:03:00]}  c4 {[%clk 0:02:53]} 7. Nbd2 {[%clk 0:02:59]}  Na5 {[%clk 0:02:53]} 8. Rb1 {[%clk 0:02:59]}  Bd7 {[%clk 0:02:51]} 9. Be2 {[%clk 0:02:58]}  Ne7 {[%clk 0:02:41]} 10. O-O {[%clk 0:02:56]}  Qc7 {[%clk 0:02:38]} 11. Re1 {[%clk 0:02:42]}  Nc8 {[%clk 0:02:37]} 12. Qc2 {[%clk 0:02:39]}  h6 {[%clk 0:02:35]} 13. Nf1 {[%clk 0:02:38]}  Nb6 {[%clk 0:02:34]} 14. Bf4 {[%clk 0:02:29]}  Ba4 {[%clk 0:02:29]} 15. Qd2 {[%clk 0:02:28]}  O-O-O {[%clk 0:02:27]} 16. h4 {[%clk 0:02:18]}  Be7 {[%clk 0:02:20]} 17. Ng3 {[%clk 0:02:12]}  Rdg8 {[%clk 0:02:12]} 18. h5 {[%clk 0:01:46]}  Kb8 {[%clk 0:02:08]} 19. Bd1 {[%clk 0:01:41]}  Bxd1 {[%clk 0:02:01]} 20. Rexd1 {[%clk 0:01:36]}  a6 {[%clk 0:02:01]} 21. Qe3 {[%clk 0:01:30]}  Ka7 {[%clk 0:01:58]} 22. Nd2 {[%clk 0:01:28]}  Rb8 {[%clk 0:01:50]} 23. b4 {[%clk 0:01:21]}  cxb3 {[%clk 0:01:49]} 24. Nxb3 {[%clk 0:01:21]}  Nxb3 {[%clk 0:01:49]} 25. Rxb3 {[%clk 0:01:21]}  Nc4 {[%clk 0:01:48]} 26. Qe2 {[%clk 0:01:13]}  Nxa3 {[%clk 0:01:34]} 27. Ra1 {[%clk 0:01:00]}  Nc4 {[%clk 0:01:29]} 28. Qg4 {[%clk 0:01:00]}  Rhg8 {[%clk 0:01:24]} 29. Nf1 {[%clk 0:00:58]}  b5 {[%clk 0:01:22]} 30. Qe2 {[%clk 0:00:55]}  Rgc8 {[%clk 0:01:19]} 31. Ne3 {[%clk 0:00:53]}  Nxe3 {[%clk 0:01:16]} 32. Bxe3 {[%clk 0:00:52]}  Qc4 {[%clk 0:01:09]} 33. Qa2 {[%clk 0:00:49]}  Rc6 {[%clk 0:01:08]} 34. Qb2 {[%clk 0:00:46]}  Rbb6 {[%clk 0:01:03]} 35. g4 {[%clk 0:00:43]}  Kb7 {[%clk 0:01:02]} 36. Qc2 {[%clk 0:00:42]}  b4 {[%clk 0:00:53]} 37. Rab1 {[%clk 0:00:38]}  bxc3 {[%clk 0:00:47]} 38. Rxb6+ {[%clk 0:00:32]}  Rxb6 {[%clk 0:00:47]} 39. Rxb6+ {[%clk 0:00:32]}  Kxb6 {[%clk 0:00:47]} 40. Qh7 {[%clk 0:00:32]}  c2 {[%clk 0:00:44]} 41. Bc1 {[%clk 0:00:30]}  Qe2 {[%clk 0:00:32]} 42. Be3 {[%clk 0:00:22]}  Bg5 {[%clk 0:00:26]} 43. Qxg7 {[%clk 0:00:12]}  Bxe3 {[%clk 0:00:23]} 0-1


[Site "https://www.chess.com"]

[Event "Titled Tuesday Blitz February 14 Early 2023"]
[White "Hartikainen, Jarmo"]
[Black "Balint, Vilmos"]
[WhiteFideId "503134"]
[BlackFideId "718050"]
[WhiteElo "2108"]
[BlackElo "2169"]
[Result "1-0"]
[Round "05"]
[TimeControl "180+2"]
[Date "2023.02.15"]
[WhiteClock "0:00:19"]
[BlackClock "0:01:51"]

1. e4 {[%clk 0:03:00]}  e5 {[%clk 0:02:59]} 2. Nf3 {[%clk 0:02:59]}  Nc6 {[%clk 0:02:59]} 3. Bc4 {[%clk 0:02:59]}  Nf6 {[%clk 0:02:59]} 4. d3 {[%clk 0:02:58]}  Bc5 {[%clk 0:02:59]} 5. c3 {[%clk 0:02:58]}  O-O {[%clk 0:02:59]} 6. O-O {[%clk 0:02:57]}  a6 {[%clk 0:02:59]} 7. Nbd2 {[%clk 0:02:51]}  d6 {[%clk 0:02:58]} 8. h3 {[%clk 0:02:47]}  Ne7 {[%clk 0:02:58]} 9. Re1 {[%clk 0:02:41]}  Ng6 {[%clk 0:02:58]} 10. d4 {[%clk 0:02:41]}  Ba7 {[%clk 0:02:56]} 11. dxe5 {[%clk 0:02:41]}  dxe5 {[%clk 0:02:56]} 12. Qc2 {[%clk 0:02:23]}  Qe7 {[%clk 0:02:53]} 13. Nf1 {[%clk 0:02:20]}  Be6 {[%clk 0:02:53]} 14. Bxe6 {[%clk 0:02:12]}  Qxe6 {[%clk 0:02:53]} 15. Be3 {[%clk 0:01:57]}  Nh5 {[%clk 0:02:48]} 16. Bxa7 {[%clk 0:01:52]}  Rxa7 {[%clk 0:02:36]} 17. Qb3 {[%clk 0:01:51]}  Qxb3 {[%clk 0:02:33]} 18. axb3 {[%clk 0:01:50]}  Nhf4 {[%clk 0:02:33]} 19. Rad1 {[%clk 0:01:47]}  Raa8 {[%clk 0:02:33]} 20. Ne3 {[%clk 0:01:47]}  Rad8 {[%clk 0:02:33]} 21. Nd5 {[%clk 0:01:43]}  c6 {[%clk 0:02:32]} 22. Nxf4 {[%clk 0:01:41]}  exf4 {[%clk 0:02:20]} 23. g3 {[%clk 0:01:32]}  fxg3 {[%clk 0:02:19]} 24. fxg3 {[%clk 0:01:33]}  f6 {[%clk 0:02:19]} 25. Kf2 {[%clk 0:01:31]}  Kf7 {[%clk 0:02:17]} 26. h4 {[%clk 0:01:28]}  Ke6 {[%clk 0:02:17]} 27. h5 {[%clk 0:01:24]}  Ne5 {[%clk 0:02:16]} 28. Nxe5 {[%clk 0:01:15]}  Kxe5 {[%clk 0:02:17]} 29. Ke3 {[%clk 0:01:12]}  Rfe8 {[%clk 0:02:16]} 30. Rf1 {[%clk 0:01:06]}  h6 {[%clk 0:02:15]} 31. Rf5+ {[%clk 0:01:00]}  Ke6 {[%clk 0:02:15]} 32. Rff1 {[%clk 0:00:58]}  Ke5 {[%clk 0:02:14]} 33. Rf5+ {[%clk 0:00:58]}  Ke6 {[%clk 0:02:14]} 34. Rff1 {[%clk 0:00:58]}  a5 {[%clk 0:02:14]} 35. Rd4 {[%clk 0:00:45]}  Rxd4 {[%clk 0:02:06]} 36. Kxd4 {[%clk 0:00:45]}  Rd8+ {[%clk 0:02:05]} 37. Ke3 {[%clk 0:00:45]}  Ke5 {[%clk 0:02:05]} 38. Rf5+ {[%clk 0:00:45]}  Ke6 {[%clk 0:02:06]} 39. Rf1 {[%clk 0:00:45]}  b6 {[%clk 0:02:05]} 40. g4 {[%clk 0:00:43]}  Ke5 {[%clk 0:02:03]} 41. Rf5+ {[%clk 0:00:42]}  Ke6 {[%clk 0:02:03]} 42. Rf1 {[%clk 0:00:43]}  Rd6 {[%clk 0:02:03]} 43. c4 {[%clk 0:00:39]}  c5 {[%clk 0:02:01]} 44. Ke2 {[%clk 0:00:34]}  Ke5 {[%clk 0:01:59]} 45. Ke3 {[%clk 0:00:33]}  Rd8 {[%clk 0:01:59]} 46. Rf5+ {[%clk 0:00:33]}  Ke6 {[%clk 0:02:00]} 47. Rd5 {[%clk 0:00:29]}  Rd6 {[%clk 0:01:59]} 48. Kf4 {[%clk 0:00:24]}  Rd7 {[%clk 0:01:50]} 49. Rxd7 {[%clk 0:00:23]}  Kxd7 {[%clk 0:01:51]} 50. Kf5 {[%clk 0:00:23]}  Ke7 {[%clk 0:01:52]} 51. e5 {[%clk 0:00:23]}  fxe5 {[%clk 0:01:50]} 52. Kxe5 {[%clk 0:00:23]}  Kd7 {[%clk 0:01:49]} 53. Kd5 {[%clk 0:00:21]}  Ke7 {[%clk 0:01:46]} 54. Kc6 {[%clk 0:00:21]}  Kf6 {[%clk 0:01:46]} 55. Kxb6 {[%clk 0:00:21]}  Kg5 {[%clk 0:01:47]} 56. Kxc5 {[%clk 0:00:19]}  Kxg4 {[%clk 0:01:48]} 57. b4 {[%clk 0:00:18]}  Kxh5 {[%clk 0:01:49]} 58. b5 {[%clk 0:00:17]}  g5 {[%clk 0:01:49]} 59. b6 {[%clk 0:00:18]}  g4 {[%clk 0:01:49]} 60. b7 {[%clk 0:00:18]}  g3 {[%clk 0:01:50]} 61. b8=Q {[%clk 0:00:19]}  g2 {[%clk 0:01:51]} 62. Qh2+ {[%clk 0:00:19]} 1-0


[Site "https://www.chess.com"]

[Event "Titled Tuesday Blitz February 14 Early 2023"]
[White "Sadovsky, Artem"]
[Black "Rosh Jain"]
[WhiteFideId "4155840"]
[BlackFideId "25789465"]
[WhiteElo "2276"]
[BlackElo "2248"]
[Result "1-0"]
[Round "05"]
[TimeControl "180+2"]
[Date "2023.02.15"]
[WhiteClock "0:00:58"]
[BlackClock "0:00:01"]

1. Nf3 {[%clk 0:02:59]}  d5 {[%clk 0:02:59]} 2. e3 {[%clk 0:02:59]}  e6 {[%clk 0:02:59]} 3. c4 {[%clk 0:02:57]}  Nf6 {[%clk 0:02:59]} 4. b3 {[%clk 0:02:57]}  c5 {[%clk 0:02:58]} 5. Bb2 {[%clk 0:02:57]}  Nc6 {[%clk 0:02:58]} 6. cxd5 {[%clk 0:02:57]}  exd5 {[%clk 0:02:58]} 7. d4 {[%clk 0:02:57]}  Be7 {[%clk 0:02:57]} 8. Nc3 {[%clk 0:02:54]}  O-O {[%clk 0:02:56]} 9. Be2 {[%clk 0:02:49]}  Be6 {[%clk 0:02:54]} 10. O-O {[%clk 0:02:49]}  Rc8 {[%clk 0:02:53]} 11. dxc5 {[%clk 0:02:48]}  Bxc5 {[%clk 0:02:53]} 12. Rc1 {[%clk 0:02:49]}  Bb6 {[%clk 0:02:49]} 13. Na4 {[%clk 0:02:46]}  Ne4 {[%clk 0:02:39]} 14. Nxb6 {[%clk 0:02:44]}  Qxb6 {[%clk 0:02:40]} 15. Nd4 {[%clk 0:02:42]}  Nb4 {[%clk 0:02:31]} 16. Rxc8 {[%clk 0:02:38]}  Rxc8 {[%clk 0:02:30]} 17. a3 {[%clk 0:02:39]}  Na2 {[%clk 0:02:30]} 18. Qa1 {[%clk 0:02:25]}  Nac3 {[%clk 0:01:32]} 19. Bd3 {[%clk 0:02:24]}  a6 {[%clk 0:00:44]} 20. Rc1 {[%clk 0:02:03]}  Nb5 {[%clk 0:00:02]} 21. Rxc8+ {[%clk 0:02:02]}  Bxc8 {[%clk 0:00:03]} 22. Nxb5 {[%clk 0:01:59]}  axb5 {[%clk 0:00:02]} 23. Bxg7 {[%clk 0:01:48]}  Qg6 {[%clk 0:00:02]} 24. Be5 {[%clk 0:01:42]}  Bh3 {[%clk 0:00:01]} 25. Bg3 {[%clk 0:01:42]}  Bf5 {[%clk 0:00:01]} 26. Bxb5 {[%clk 0:01:20]}  Nxg3 {[%clk 0:00:01]} 27. hxg3 {[%clk 0:01:18]}  Be4 {[%clk 0:00:02]} 28. Bf1 {[%clk 0:01:17]}  h5 {[%clk 0:00:03]} 29. Qe5 {[%clk 0:01:14]}  Kh7 {[%clk 0:00:02]} 30. b4 {[%clk 0:01:12]}  Bd3 {[%clk 0:00:02]} 31. Bxd3 {[%clk 0:01:10]}  Qxd3 {[%clk 0:00:03]} 32. Qxh5+ {[%clk 0:01:07]}  Kg8 {[%clk 0:00:03]} 33. Qg4+ {[%clk 0:01:05]}  Kh7 {[%clk 0:00:01]} 34. Qd4 {[%clk 0:00:58]} 1-0


[Site "https://www.chess.com"]

[Event "Titled Tuesday Blitz February 14 Early 2023"]
[White "Fernandez Siles, Luis"]
[Black "mestrefeitosa19"]
[WhiteFideId "2209420"]
[WhiteElo "2218"]
[BlackElo "2211"]
[Result "1-0"]
[Round "05"]
[TimeControl "180+2"]
[Date "2023.02.15"]
[WhiteClock "0:00:46"]
[BlackClock "0:00:14"]

1. d4 {[%clk 0:03:00]}  d5 {[%clk 0:02:52]} 2. c4 {[%clk 0:03:00]}  e6 {[%clk 0:02:52]} 3. Nc3 {[%clk 0:03:00]}  Nf6 {[%clk 0:02:51]} 4. cxd5 {[%clk 0:02:57]}  exd5 {[%clk 0:02:51]} 5. Bg5 {[%clk 0:02:57]}  Be7 {[%clk 0:02:52]} 6. e3 {[%clk 0:02:57]}  O-O {[%clk 0:02:52]} 7. Qc2 {[%clk 0:02:57]}  b6 {[%clk 0:02:50]} 8. Nf3 {[%clk 0:02:39]}  Bb7 {[%clk 0:02:49]} 9. Bd3 {[%clk 0:02:38]}  h6 {[%clk 0:02:49]} 10. Bf4 {[%clk 0:02:34]}  c6 {[%clk 0:02:37]} 11. h3 {[%clk 0:02:32]}  Bd6 {[%clk 0:02:33]} 12. Ne5 {[%clk 0:02:27]}  Qe7 {[%clk 0:02:18]} 13. g4 {[%clk 0:02:20]}  c5 {[%clk 0:01:57]} 14. O-O-O {[%clk 0:02:09]}  c4 {[%clk 0:01:43]} 15. Bf5 {[%clk 0:02:04]}  Nfd7 {[%clk 0:01:28]} 16. h4 {[%clk 0:01:43]}  Nxe5 {[%clk 0:01:23]} 17. dxe5 {[%clk 0:01:33]}  Bxe5 {[%clk 0:01:23]} 18. Nxd5 {[%clk 0:01:29]}  Bxd5 {[%clk 0:01:20]} 19. Rxd5 {[%clk 0:01:29]}  Bxf4 {[%clk 0:01:15]} 20. exf4 {[%clk 0:01:30]}  Nc6 {[%clk 0:00:58]} 21. Rd7 {[%clk 0:01:05]}  Qb4 {[%clk 0:00:19]} 22. g5 {[%clk 0:00:58]}  g6 {[%clk 0:00:16]} 23. Bxg6 {[%clk 0:00:54]}  Nd4 {[%clk 0:00:15]} 24. Bxf7+ {[%clk 0:00:47]}  Rxf7 {[%clk 0:00:14]} 25. Qg6+ {[%clk 0:00:46]} 1-0


[Site "https://www.chess.com"]

[Event "Titled Tuesday Blitz February 14 Early 2023"]
[White "ritanovikova"]
[Black "Ruiz Aguilar, Pablo Alexander"]
[BlackFideId "4401352"]
[WhiteElo "2179"]
[BlackElo "2161"]
[Result "0-1"]
[Round "05"]
[TimeControl "180+2"]
[Date "2023.02.15"]
[WhiteClock "0:00:39"]
[BlackClock "0:00:58"]

1. e4 {[%clk 0:02:59]}  c5 {[%clk 0:02:54]} 2. Nc3 {[%clk 0:02:59]}  g6 {[%clk 0:02:51]} 3. d3 {[%clk 0:02:59]}  Nc6 {[%clk 0:02:50]} 4. Be3 {[%clk 0:02:59]}  d6 {[%clk 0:02:45]} 5. Qd2 {[%clk 0:02:59]}  Bg7 {[%clk 0:02:46]} 6. g3 {[%clk 0:02:59]}  Rb8 {[%clk 0:02:44]} 7. Bg2 {[%clk 0:02:59]}  b5 {[%clk 0:02:43]} 8. h4 {[%clk 0:02:57]}  b4 {[%clk 0:02:43]} 9. Nd1 {[%clk 0:02:57]}  h5 {[%clk 0:02:43]} 10. Ne2 {[%clk 0:02:56]}  Nf6 {[%clk 0:02:41]} 11. f3 {[%clk 0:02:56]}  Nd7 {[%clk 0:02:39]} 12. d4 {[%clk 0:02:55]}  cxd4 {[%clk 0:02:37]} 13. Nxd4 {[%clk 0:02:56]}  Nxd4 {[%clk 0:02:35]} 14. Bxd4 {[%clk 0:02:56]}  Bxd4 {[%clk 0:02:29]} 15. Qxd4 {[%clk 0:02:57]}  O-O {[%clk 0:02:29]} 16. Ne3 {[%clk 0:02:46]}  Qb6 {[%clk 0:02:27]} 17. Qd2 {[%clk 0:02:43]}  Bb7 {[%clk 0:02:20]} 18. g4 {[%clk 0:02:38]}  hxg4 {[%clk 0:01:53]} 19. h5 {[%clk 0:02:37]}  Kg7 {[%clk 0:01:43]} 20. hxg6 {[%clk 0:02:32]}  fxg6 {[%clk 0:01:33]} 21. Nd5 {[%clk 0:01:54]}  Bxd5 {[%clk 0:01:29]} 22. Qh6+ {[%clk 0:01:52]}  Kf7 {[%clk 0:01:28]} 23. Qh7+ {[%clk 0:01:48]}  Ke8 {[%clk 0:01:28]} 24. O-O-O {[%clk 0:01:29]}  Bf7 {[%clk 0:01:21]} 25. fxg4 {[%clk 0:01:25]}  Ne5 {[%clk 0:01:09]} 26. Kb1 {[%clk 0:01:19]}  a5 {[%clk 0:01:08]} 27. Qg7 {[%clk 0:01:14]}  a4 {[%clk 0:01:08]} 28. Rh8 {[%clk 0:01:00]}  Rxh8 {[%clk 0:01:04]} 29. Qxh8+ {[%clk 0:01:00]}  Kd7 {[%clk 0:01:05]} 30. Qh3 {[%clk 0:00:59]}  g5 {[%clk 0:01:03]} 31. Qh6 {[%clk 0:00:52]}  Bxa2+ {[%clk 0:00:59]} 32. Kxa2 {[%clk 0:00:41]}  b3+ {[%clk 0:00:59]} 33. Ka1 {[%clk 0:00:39]}  bxc2 {[%clk 0:00:59]} 34. Qxg5 {[%clk 0:00:39]}  Qxb2# {[%clk 0:00:58]} 0-1


[Site "https://www.chess.com"]

[Event "Titled Tuesday Blitz February 14 Early 2023"]
[White "Makhmudov, Shukhrat"]
[Black "Larina, Maria"]
[WhiteFideId "14200775"]
[BlackFideId "24113182"]
[WhiteElo "2115"]
[BlackElo "1948"]
[Result "0-1"]
[Round "05"]
[TimeControl "180+2"]
[Date "2023.02.15"]
[WhiteClock "0:00:52"]
[BlackClock "0:00:53"]

1. e4 {[%clk 0:03:00]}  c6 {[%clk 0:02:58]} 2. Nc3 {[%clk 0:03:00]}  d5 {[%clk 0:02:58]} 3. exd5 {[%clk 0:03:00]}  cxd5 {[%clk 0:02:57]} 4. d4 {[%clk 0:03:01]}  Nc6 {[%clk 0:02:55]} 5. Bf4 {[%clk 0:03:01]}  Nf6 {[%clk 0:02:52]} 6. Nb5 {[%clk 0:03:01]}  e5 {[%clk 0:02:43]} 7. dxe5 {[%clk 0:02:59]}  Ne4 {[%clk 0:02:37]} 8. f3 {[%clk 0:02:53]}  Nc5 {[%clk 0:02:28]} 9. Qxd5 {[%clk 0:02:50]}  Qa5+ {[%clk 0:02:07]} 10. Bd2 {[%clk 0:02:31]}  Qb6 {[%clk 0:02:05]} 11. O-O-O {[%clk 0:02:08]}  Be6 {[%clk 0:02:03]} 12. Nd6+ {[%clk 0:02:04]}  Bxd6 {[%clk 0:02:02]} 13. Qxd6 {[%clk 0:02:03]}  Rd8 {[%clk 0:01:55]} 14. Bc3 {[%clk 0:01:34]}  Rxd6 {[%clk 0:01:48]} 15. exd6 {[%clk 0:01:31]}  O-O {[%clk 0:01:39]} 16. b3 {[%clk 0:01:29]}  a5 {[%clk 0:01:29]} 17. Ne2 {[%clk 0:01:18]}  a4 {[%clk 0:01:25]} 18. Nd4 {[%clk 0:01:15]}  Nxd4 {[%clk 0:01:22]} 19. Bxd4 {[%clk 0:01:14]}  axb3 {[%clk 0:01:22]} 20. axb3 {[%clk 0:01:10]}  Bxb3 {[%clk 0:01:14]} 21. Bxc5 {[%clk 0:01:04]}  Qxc5 {[%clk 0:01:13]} 22. Bd3 {[%clk 0:01:04]}  Be6 {[%clk 0:00:59]} 23. Rhe1 {[%clk 0:00:59]}  Rd8 {[%clk 0:00:55]} 24. d7 {[%clk 0:00:52]}  g6 {[%clk 0:00:53]} 0-1


[Site "https://www.chess.com"]

[Event "Titled Tuesday Blitz February 14 Early 2023"]
[White "Colijn, Stefan"]
[Black "Levine, David"]
[WhiteFideId "1016199"]
[BlackFideId "2011611"]
[WhiteElo "2293"]
[BlackElo "2040"]
[Result "1-0"]
[Round "05"]
[TimeControl "180+2"]
[Date "2023.02.15"]
[WhiteClock "0:00:07"]
[BlackClock "0:00:03"]

1. d4 {[%clk 0:00:54]}  d5 {[%clk 0:02:57]} 2. Nc3 {[%clk 0:00:55]}  Nf6 {[%clk 0:02:56]} 3. Bf4 {[%clk 0:00:54]}  c5 {[%clk 0:02:49]} 4. e3 {[%clk 0:00:53]}  a6 {[%clk 0:02:49]} 5. a3 {[%clk 0:00:46]}  cxd4 {[%clk 0:02:46]} 6. exd4 {[%clk 0:00:46]}  Nc6 {[%clk 0:02:46]} 7. h3 {[%clk 0:00:43]}  Bf5 {[%clk 0:02:41]} 8. Nf3 {[%clk 0:00:44]}  e6 {[%clk 0:02:39]} 9. Be2 {[%clk 0:00:43]}  h6 {[%clk 0:02:39]} 10. O-O {[%clk 0:00:42]}  Bd6 {[%clk 0:02:33]} 11. Ne5 {[%clk 0:00:42]}  Rc8 {[%clk 0:02:31]} 12. Re1 {[%clk 0:00:41]}  O-O {[%clk 0:02:31]} 13. Bf3 {[%clk 0:00:40]}  Qc7 {[%clk 0:02:21]} 14. Rc1 {[%clk 0:00:31]}  Nd7 {[%clk 0:02:13]} 15. Nxd7 {[%clk 0:00:28]}  Qxd7 {[%clk 0:02:13]} 16. Bxd6 {[%clk 0:00:27]}  Qxd6 {[%clk 0:02:12]} 17. Na4 {[%clk 0:00:28]}  b5 {[%clk 0:02:02]} 18. Nc5 {[%clk 0:00:28]}  Nxd4 {[%clk 0:01:57]} 19. b4 {[%clk 0:00:18]}  Nxc2 {[%clk 0:01:17]} 20. Rxc2 {[%clk 0:00:17]}  Bxc2 {[%clk 0:01:17]} 21. Qxc2 {[%clk 0:00:18]}  a5 {[%clk 0:01:17]} 22. Qd2 {[%clk 0:00:18]}  axb4 {[%clk 0:01:16]} 23. axb4 {[%clk 0:00:19]}  Ra8 {[%clk 0:01:15]} 24. Be2 {[%clk 0:00:18]}  Rfb8 {[%clk 0:01:04]} 25. Bf1 {[%clk 0:00:17]}  Ra3 {[%clk 0:00:59]} 26. Rc1 {[%clk 0:00:14]}  Qc6 {[%clk 0:00:42]} 27. Qd4 {[%clk 0:00:12]}  Qa8 {[%clk 0:00:36]} 28. Kh2 {[%clk 0:00:10]}  Ra2 {[%clk 0:00:32]} 29. Nd7 {[%clk 0:00:10]}  Rc8 {[%clk 0:00:29]} 30. Nb6 {[%clk 0:00:09]}  Rxc1 {[%clk 0:00:26]} 31. Nxa8 {[%clk 0:00:09]}  Rxa8 {[%clk 0:00:25]} 32. Bxb5 {[%clk 0:00:08]}  Ra2 {[%clk 0:00:14]} 33. Be2 {[%clk 0:00:06]}  Rcc2 {[%clk 0:00:13]} 34. Bf3 {[%clk 0:00:06]}  Rxf2 {[%clk 0:00:12]} 35. Kg3 {[%clk 0:00:07]}  Rfd2 {[%clk 0:00:11]} 36. Qb6 {[%clk 0:00:06]}  e5 {[%clk 0:00:10]} 37. Qd8+ {[%clk 0:00:05]}  Kh7 {[%clk 0:00:09]} 38. Bxd5 {[%clk 0:00:06]}  Ra3+ {[%clk 0:00:09]} 39. Kh2 {[%clk 0:00:06]}  Rad3 {[%clk 0:00:07]} 40. Be4+ {[%clk 0:00:06]}  g6 {[%clk 0:00:07]} 41. Bxd3 {[%clk 0:00:07]}  Kg7 {[%clk 0:00:05]} 42. b5 {[%clk 0:00:07]}  e4 {[%clk 0:00:05]} 43. Qd4+ {[%clk 0:00:07]}  Kf8 {[%clk 0:00:04]} 44. Qxe4 {[%clk 0:00:08]}  Rb2 {[%clk 0:00:03]} 45. Qd4 {[%clk 0:00:07]}  Ke7 {[%clk 0:00:03]} 46. Qxb2 {[%clk 0:00:07]} 1-0


[Site "https://www.chess.com"]

[Event "Titled Tuesday Blitz February 14 Early 2023"]
[White "Hernandez Bonilla, Amelia"]
[Black "Orujov, Elshad"]
[WhiteFideId "3900193"]
[BlackFideId "13403540"]
[WhiteElo "1960"]
[BlackElo "2304"]
[Result "0-1"]
[Round "05"]
[TimeControl "180+2"]
[Date "2023.02.15"]
[WhiteClock "0:00:19"]
[BlackClock "0:00:06"]

1. d4 {[%clk 0:02:58]}  Nf6 {[%clk 0:02:59]} 2. Bf4 {[%clk 0:02:56]}  d5 {[%clk 0:02:58]} 3. e3 {[%clk 0:02:56]}  c5 {[%clk 0:02:58]} 4. Nf3 {[%clk 0:02:54]}  Nc6 {[%clk 0:02:57]} 5. Nbd2 {[%clk 0:02:54]}  Bf5 {[%clk 0:02:55]} 6. Bb5 {[%clk 0:02:45]}  e6 {[%clk 0:02:52]} 7. c4 {[%clk 0:02:37]}  cxd4 {[%clk 0:02:51]} 8. Nxd4 {[%clk 0:02:35]}  Qd7 {[%clk 0:02:47]} 9. Qa4 {[%clk 0:02:32]}  Rc8 {[%clk 0:02:40]} 10. Nxf5 {[%clk 0:02:24]}  exf5 {[%clk 0:02:40]} 11. O-O {[%clk 0:02:17]}  Bd6 {[%clk 0:02:31]} 12. Rad1 {[%clk 0:02:05]}  Bxf4 {[%clk 0:02:26]} 13. exf4 {[%clk 0:02:06]}  O-O {[%clk 0:02:02]} 14. Nf3 {[%clk 0:02:02]}  a6 {[%clk 0:01:57]} 15. Bxc6 {[%clk 0:01:58]}  bxc6 {[%clk 0:01:58]} 16. cxd5 {[%clk 0:01:53]}  Nxd5 {[%clk 0:01:56]} 17. Ne5 {[%clk 0:01:51]}  Qb7 {[%clk 0:01:53]} 18. Rd2 {[%clk 0:01:39]}  f6 {[%clk 0:01:20]} 19. Nd3 {[%clk 0:01:31]}  Qc7 {[%clk 0:01:13]} 20. Rc1 {[%clk 0:01:25]}  Rfe8 {[%clk 0:01:10]} 21. g3 {[%clk 0:01:23]}  h5 {[%clk 0:00:58]} 22. Qxa6 {[%clk 0:01:13]}  h4 {[%clk 0:00:56]} 23. Rdc2 {[%clk 0:01:09]}  Re6 {[%clk 0:00:41]} 24. Qc4 {[%clk 0:01:01]}  Qa7 {[%clk 0:00:24]} 25. a3 {[%clk 0:00:53]}  h3 {[%clk 0:00:23]} 26. Qc5 {[%clk 0:00:47]}  Qb7 {[%clk 0:00:18]} 27. Qc4 {[%clk 0:00:43]}  Qa7 {[%clk 0:00:17]} 28. Nc5 {[%clk 0:00:43]}  Re7 {[%clk 0:00:13]} 29. Rd2 {[%clk 0:00:41]}  Rce8 {[%clk 0:00:12]} 30. Nd3 {[%clk 0:00:35]}  Re2 {[%clk 0:00:12]} 31. Rxe2 {[%clk 0:00:33]}  Rxe2 {[%clk 0:00:13]} 32. Qxc6 {[%clk 0:00:32]}  Ne7 {[%clk 0:00:10]} 33. Qc4+ {[%clk 0:00:29]}  Kh7 {[%clk 0:00:09]} 34. Nc5 {[%clk 0:00:28]}  Qa8 {[%clk 0:00:07]} 35. Nb7 {[%clk 0:00:21]}  Qxb7 {[%clk 0:00:07]} 36. Qc3 {[%clk 0:00:19]}  Qg2# {[%clk 0:00:06]} 0-1


[Site "https://www.chess.com"]